bitfinex-derivatives/quotes_SOLF0:USTF0_20220104
["timestamp","ask_amount","ask_price","bid_price","bid_amount"]
[1641262343502,35.91979,167.41,167.33,33.75234427]
[1641262343704,3.0,167.4,167.33,33.75234427]
[1641262343903,3.0,167.39,167.33,8.63783703]
[1641262344105,3.0,167.38,167.33,8.63783703]
[1641262344303,3.0,167.39,167.33,8.63783703]
[1641262345005,32.91979,167.41,167.25,50.55213868]
[1641262345006,27.66479,167.34,167.28,33.75234427]
[1641262345703,27.66479,167.34,167.27,33.75234427]
[1641262345904,3.0,167.4,167.27,33.75234427]
[1641262346504,3.0,167.4,167.29,33.75234427]
[1641262346803,3.0,167.4,167.29,38.25834427]
[1641262347004,27.66479,167.37,167.29,38.25834427]
[1641262347203,27.66479,167.37,167.29,4.506]
[1641262347906,27.66479,167.37,167.29,46.8961813]
[1641262348705,27.66479,167.37,167.29,59.48311492]
[1641262348907,60.4729,167.39,167.33,27.66479]
[1641262349106,27.66479,167.41,167.34,3.0]
[1641262349306,27.66479,167.44,167.33,35.04279]
[1641262349507,27.66479,167.44,167.34,8.63783703]
[1641262350007,27.66479,167.44,167.34,42.3901813]
[1641262350208,27.66479,167.44,167.34,45.3901813]
[1641262350609,64.3246,167.48,167.34,45.3901813]
[1641262351010,64.3246,167.48,167.38,27.66479]
[1641262351011,91.98939,167.48,167.38,27.66479]
[1641262351211,91.98939,167.48,167.38,32.69879]
[1641262351413,91.98939,167.48,167.38,35.69879]
[1641262351711,91.98939,167.48,167.39,8.63783703]
[1641262351912,91.98939,167.48,167.39,11.63783703]
[1641262352110,91.98939,167.48,167.39,8.63783703]
[1641262353211,91.98939,167.48,167.41,27.66479]
[1641262353411,27.66479,167.48,167.41,27.66479]
[1641262354016,27.66479,167.48,167.38,61.41713427]
[1641262354017,27.66479,167.48,167.42,8.63783703]
[1641262354612,30.66479,167.48,167.42,8.63783703]
[1641262354813,27.66479,167.48,167.42,8.63783703]
[1641262355215,30.66479,167.48,167.38,33.75234427]
[1641262355417,35.27879,167.48,167.38,61.41713427]
[1641262355618,32.27879,167.48,167.38,33.75234427]
[1641262355817,32.27879,167.48,167.39,8.63783703]
[1641262356818,32.27879,167.48,167.36,54.63392923]
[1641262357215,32.27879,167.48,167.36,8.63783703]
[1641262357216,8.79398991,167.47,167.36,8.63783703]
[1641262358117,8.79398991,167.47,167.39,8.96640912]
[1641262358917,33.75234427,167.49,167.39,8.96640912]
[1641262359119,27.66479,167.51,167.39,8.96640912]
[1641262359316,27.66479,167.51,167.42,27.66479]
[1641262359620,27.66479,167.51,167.39,48.32875339]
[1641262360822,27.66479,167.51,167.39,14.57640912]
[1641262361320,27.66479,167.51,167.42,27.66479]
[1641262362223,11.03903145,167.5,167.43,1.97255217]
[1641262363628,11.03903145,167.5,167.4,1.97255217]
[1641262364329,11.03903145,167.5,167.36,10.04373286]
[1641262365126,11.03903145,167.5,167.4,5.96623113]
[1641262365329,44.79137572,167.5,167.37,5.9672992]
[1641262365528,44.79137572,167.5,167.4,27.66479]
[1641262365728,35.9963435,167.5,167.4,27.66479]
[1641262365928,2.24399923,167.5,167.4,27.66479]
[1641262366629,11.03986155,167.5,167.41,10.04373286]
[1641262367330,11.03986155,167.5,167.38,45.04189644]
[1641262367529,11.03986155,167.5,167.42,27.66479]
[1641262367729,11.03986155,167.5,167.42,33.09379]
[1641262368130,2.24399923,167.5,167.42,33.09379]
[1641262368331,2.24399923,167.5,167.42,35.06634217]
[1641262368833,2.24399923,167.5,167.43,8.07118069]
[1641262369034,2.24399923,167.5,167.43,10.04373286]
[1641262369733,2.24399923,167.5,167.43,1.97255217]
[1641262369933,11.04105035,167.5,167.43,1.97255217]
[1641262370433,14.04105035,167.5,167.38,1.97255217]
[1641262370635,3.0,167.49,167.38,1.97255217]
[1641262370834,18.60505035,167.5,167.38,1.97255217]
[1641262371033,2.24399923,167.48,167.38,1.97255217]
[1641262371233,5.24399923,167.48,167.38,1.97255217]
[1641262371433,30.66479,167.47,167.38,1.97255217]
[1641262371934,30.66479,167.47,167.36,10.0438066]
[1641262371935,32.90878923,167.47,167.36,10.0438066]
[1641262372335,3.0,167.46,167.36,10.0438066]
[1641262372533,19.41305035,167.46,167.36,10.0438066]
[1641262373634,2.24399923,167.45,167.36,10.0438066]
[1641262374134,3.0,167.44,167.36,10.0438066]
[1641262374535,12.65505389,167.42,167.35,22.69886049]
[1641262375434,2.24399923,167.43,167.35,1.97255217]
[1641262375636,29.90878923,167.43,167.35,1.97255217]
[1641262376134,2.24399923,167.42,167.35,1.97255217]
[1641262377136,2.24399923,167.42,167.35,14.62760606]
[1641262377634,2.24399923,167.42,167.35,1.97255217]
[1641262379435,12.65505389,167.44,167.35,1.97255217]
[1641262379635,2.24399923,167.45,167.36,12.65505389]
[1641262380339,2.24399923,167.45,167.36,14.62760606]
[1641262381639,27.66479,167.44,167.36,14.62760606]
[1641262382440,2.24399923,167.43,167.36,12.65505389]
[1641262382942,2.24399923,167.43,167.35,14.62760606]
[1641262383141,2.24399923,167.43,167.35,12.65505389]
[1641262384743,3.0,167.42,167.35,12.65505389]
[1641262384947,4.185,167.42,167.33,14.62760606]
[1641262385543,27.66479,167.38,167.33,14.62760606]
[1641262385744,32.39279,167.38,167.33,14.62760606]
[1641262386143,32.39279,167.38,167.32,12.65505389]
[1641262387442,32.39279,167.38,167.31,10.0438066]
[1641262387443,2.24399923,167.37,167.31,12.65505389]
[1641262388043,2.24399923,167.37,167.32,12.65505389]
[1641262389544,55.32958,167.38,167.34,12.65505389]
[1641262390844,55.32958,167.38,167.3,33.75234427]
[1641262390845,2.24734447,167.37,167.32,12.65505389]
[1641262391245,3.0,167.36,167.32,12.65505389]
[1641262391648,27.66479,167.33,167.32,12.65505389]
[1641262391849,32.40679,167.33,167.3,5.389e-05]
[1641262392853,32.40679,167.33,167.25,10.0438066]
[1641262392854,3.0,167.32,167.25,10.0438066]
[1641262393250,35.40679,167.33,167.25,10.0438066]
[1641262393552,27.66479,167.33,167.25,10.0438066]
[1641262393751,27.66479,167.33,167.25,14.8818066]
[1641262394051,2.36243161,167.32,167.26,1.97255217]
[1641262394551,27.66479,167.33,167.26,1.97255217]
[1641262394853,27.66479,167.33,167.27,1.97255217]
[1641262395551,62.1232,167.35,167.28,1.97255217]
[1641262396154,3.0,167.31,167.27,33.75234427]
[1641262396355,7.647,167.31,167.27,33.75234427]
[1641262396553,11.86734784,167.31,167.3,4.22034784]
[1641262396955,11.86734784,167.31,167.3,4.784e-05]
[1641262397353,8.86734784,167.31,167.3,4.784e-05]
[1641262397556,36.53213784,167.31,167.3,4.784e-05]
[1641262397754,32.31179,167.31,167.21,27.66479]
[1641262398459,32.31179,167.31,167.23,33.75234427]
[1641262398755,25.55937398,167.31,167.23,33.75234427]
[1641262399156,25.55937398,167.31,167.22,8.07125443]
[1641262399157,25.55937398,167.31,167.21,8.07125443]
[1641262399358,3.0,167.3,167.21,8.07125443]
[1641262399558,31.94337398,167.31,167.21,8.07125443]
[1641262400160,6.384,167.31,167.2,11.59718042]
[1641262400360,27.66479,167.32,167.24,5.97193192]
[1641262400758,95.87554427,167.35,167.24,5.97193192]
[1641262400959,62.1232,167.35,167.24,5.97193192]
[1641262401560,62.1232,167.35,167.26,27.66479]
[1641262401961,62.1232,167.35,167.24,102.12847619]
[1641262402163,70.2692,167.35,167.24,96.15654427]
[1641262402562,67.2692,167.35,167.24,96.15654427]
[1641262403063,70.2692,167.35,167.24,96.15654427]
[1641262403263,12.16092117,167.34,167.25,8.07125443]
[1641262403467,3.0,167.3,167.25,8.07125443]
[1641262403763,27.66479,167.29,167.25,8.07125443]
[1641262403966,9.16092117,167.34,167.25,8.07125443]
[1641262404164,9.16092117,167.34,167.2,42.72570309]
[1641262405064,95.87554427,167.35,167.2,42.72570309]
[1641262405264,62.1232,167.35,167.23,39.72463285]
[1641262405473,33.75234427,167.38,167.23,45.43563285]
[1641262405666,61.41713427,167.38,167.29,27.66479]
[1641262405865,61.41713427,167.38,167.29,33.11779]
[1641262406264,27.66479,167.38,167.29,5.453]
[1641262406866,27.66479,167.38,167.26,61.41713427]
[1641262407067,3.0,167.37,167.26,33.75234427]
[1641262407269,3.0,167.34,167.27,8.07125443]
[1641262407567,27.66479,167.32,167.27,8.07125443]
[1641262407968,27.66479,167.32,167.24,95.20164427]
[1641262408168,27.66479,167.32,167.22,27.66479]
[1641262408769,27.66479,167.32,167.23,7.45790062]
[1641262411972,30.66479,167.32,167.23,7.45790062]
[1641262412172,27.66479,167.32,167.23,7.45790062]
[1641262412372,3.0,167.29,167.23,7.45790062]
[1641262412571,9.693,167.29,167.23,7.45790062]
[1641262412973,6.693,167.29,167.2,7.45790062]
[1641262414073,62.8505,167.31,167.2,7.45790062]
[1641262414272,65.8505,167.31,167.2,7.45790062]
[1641262414472,62.8505,167.31,167.2,7.45790062]
[1641262415174,65.8505,167.31,167.2,7.45790062]
[1641262415874,3.0,167.3,167.2,7.45790062]
[1641262416075,9.399,167.3,167.2,7.45790062]
[1641262417478,6.399,167.3,167.2,7.45790062]
[1641262417878,27.66479,167.27,167.19,7.45790062]
[1641262418277,27.66479,167.27,167.19,10.45790062]
[1641262418675,62.8505,167.31,167.19,55.76649678]
[1641262419477,62.8505,167.31,167.2,33.75234427]
[1641262419677,65.8505,167.31,167.2,33.75234427]
[1641262419879,27.66479,167.29,167.2,33.75234427]
[1641262420178,33.17079,167.29,167.2,33.75234427]
[1641262420478,33.17079,167.29,167.19,55.76649678]
[1641262421280,27.66479,167.29,167.19,55.76649678]
[1641262421882,27.66479,167.29,167.2,27.66479]
[1641262422482,27.66479,167.29,167.23,12.66371482]
[1641262423181,27.66479,167.29,167.24,12.66371482]
[1641262423983,27.66479,167.29,167.25,12.66371482]
[1641262424883,30.66479,167.29,167.25,12.66371482]
[1641262425084,3.0,167.26,167.25,12.66371482]
[1641262425283,6.0,167.27,167.25,8.64351482]
[1641262426086,27.66479,167.26,167.25,8.64351482]
[1641262426586,27.66479,167.26,167.16,65.4863]
[1641262426986,27.66479,167.26,167.18,3.0]
[1641262427186,9.52620084,167.28,167.18,8.973]
[1641262427386,9.52620084,167.28,167.21,3.0]
[1641262427987,9.52620084,167.28,167.24,27.66479]
[1641262428186,9.52620084,167.28,167.24,33.40479]
[1641262428392,33.75234427,167.3,167.24,5.74]
[1641262428589,62.8505,167.31,167.24,5.74]
[1641262429389,62.8505,167.31,167.19,33.75234427]
[1641262429590,62.8505,167.31,167.18,33.75234427]
[1641262429991,27.66479,167.27,167.18,33.75234427]
[1641262430591,27.66479,167.27,167.17,52.76649678]
[1641262430791,9.52419671,167.3,167.17,52.76649678]
[1641262431195,62.8505,167.31,167.19,33.75234427]
[1641262431494,27.66479,167.33,167.2,5.97335882]
[1641262431694,27.66479,167.33,167.2,10.95335882]
[1641262431893,27.66479,167.33,167.2,47.70570309]
[1641262432094,27.66479,167.33,167.23,27.66479]
[1641262432296,61.41713427,167.36,167.23,33.63690025]
[1641262432695,27.66479,167.36,167.24,7.45790062]
[1641262432896,27.66479,167.36,167.24,12.65190062]
[1641262433297,27.66479,167.36,167.26,3.0]
[1641262433498,27.66479,167.36,167.25,3.0]
[1641262434097,27.66479,167.36,167.28,27.66479]
[1641262434699,27.66479,167.36,167.26,63.5109]
[1641262434897,34.10879,167.36,167.26,63.5109]
[1641262435098,9.51942461,167.35,167.26,63.5109]
[1641262435301,9.51942461,167.35,167.23,33.63690025]
[1641262436302,12.03458578,167.35,167.24,9.0669508]
[1641262437603,2.51516117,167.35,167.24,54.26598775]
[1641262438000,2.51516117,167.35,167.26,27.66479]
[1641262438904,12.03438607,167.35,167.27,1.70542539]
[1641262440005,12.03438607,167.35,167.27,7.10842539]
[1641262440607,2.51516117,167.35,167.28,1.70542539]
[1641262441809,2.51516117,167.35,167.28,4.70542539]
[1641262442106,2.51516117,167.35,167.31,27.66479]
[1641262442308,12.03144865,167.38,167.31,32.25379]
[1641262442908,12.03144865,167.38,167.32,1.70542539]
[1641262444908,2.51516117,167.38,167.28,1.70542539]
[1641262445508,2.51516117,167.38,167.27,65.7644]
[1641262447510,3.0,167.37,167.27,65.7644]
[1641262448313,27.66479,167.35,167.27,65.7644]
[1641262449211,33.56779,167.35,167.25,59.6158]
[1641262449412,33.56779,167.35,167.23,70.17901025]
[1641262449613,33.56779,167.35,167.23,73.17901025]
[1641262450615,27.66479,167.35,167.23,73.17901025]
[1641262450914,27.66479,167.35,167.24,4.69394194]
[1641262451113,27.66479,167.35,167.24,11.08494194]
[1641262451313,27.66479,167.35,167.25,3.0]
[1641262451515,27.66479,167.35,167.24,11.08494194]
[1641262451716,27.66479,167.35,167.25,1.69394194]
[1641262452517,27.66479,167.35,167.24,29.35873194]
[1641262453216,27.66479,167.35,167.25,1.69394194]
[1641262453416,2.50761623,167.34,167.25,1.69394194]
[1641262455819,19.48870422,167.34,167.25,1.69394194]
[1641262456219,27.66479,167.32,167.25,1.69394194]
[1641262456721,27.66479,167.32,167.24,1.69394194]
[1641262457320,4.2087636,167.28,167.24,4.2087636]
[1641262457924,9.2907636,167.28,167.22,1.69394194]
[1641262458122,9.2907636,167.28,167.21,12.62586675]
[1641262458323,55.32958,167.22,167.17,33.75234427]
[1641262458521,60.59658,167.22,167.17,33.75234427]
[1641262459124,60.59658,167.22,167.12,64.1905]
[1641262459424,65.7117,167.25,167.12,64.1905]
[1641262460124,65.7117,167.25,167.13,3.0]
[1641262460325,27.66479,167.22,167.13,30.66479]
[1641262460525,27.66479,167.24,167.17,3.0]
[1641262460724,27.66479,167.24,167.17,5.337]
[1641262461928,27.66479,167.24,167.12,67.56831356]
[1641262462130,33.98679,167.24,167.12,67.56831356]
[1641262462329,27.66479,167.19,167.12,67.56831356]
[1641262462528,33.82579,167.19,167.12,3.37781356]
[1641262464030,33.82579,167.19,167.11,8.97639325]
[1641262464831,33.82579,167.19,167.11,3.0]
[1641262465234,27.66479,167.19,167.11,3.0]
[1641262465636,27.66479,167.19,167.1,12.97334456]
[1641262465836,64.7393,167.23,167.11,3.0]
[1641262466136,64.7393,167.23,167.11,11.74439325]
[1641262466636,64.7393,167.23,167.11,14.74439325]
[1641262467036,64.7393,167.23,167.1,12.97334456]
[1641262467236,70.9533,167.23,167.1,12.97334456]
[1641262467837,70.9533,167.23,167.1,9.97334456]
[1641262468036,3.0,167.21,167.1,6.595531]
[1641262468236,27.66479,167.17,167.1,6.595531]
[1641262468638,34.00379,167.17,167.1,6.595531]
[1641262469438,34.00379,167.17,167.09,27.66479]
[1641262470037,37.00379,167.17,167.09,27.66479]
[1641262470241,64.66858,167.17,167.06,27.66479]
[1641262470938,3.0,167.16,167.07,6.59572208]
[1641262471139,65.9057,167.16,167.07,6.59572208]
[1641262471438,62.9057,167.16,167.07,6.59572208]
[1641262471738,62.9057,167.16,167.05,6.59572208]
[1641262472342,27.66479,167.11,167.05,6.59572208]
[1641262473739,62.9057,167.16,167.05,6.59572208]
[1641262473740,62.9057,167.16,167.05,9.59572208]
[1641262474440,62.9057,167.16,167.06,3.0]
[1641262474641,62.9057,167.16,167.05,9.59572208]
[1641262475041,62.9057,167.16,167.07,33.75234427]
[1641262475240,55.32958,167.17,167.07,49.54616655]
[1641262475442,27.66479,167.17,167.07,46.54616655]
[1641262475641,36.75234427,167.22,167.07,46.54616655]
[1641262475841,61.4845,167.21,167.07,46.54616655]
[1641262476046,61.4845,167.21,167.1,3.0]
[1641262476444,27.66479,167.17,167.07,39.73016655]
[1641262476645,32.23479,167.17,167.06,65.7736]
[1641262476850,32.23479,167.17,167.05,6.37881805]
[1641262477447,32.23479,167.17,167.06,3.0]
[1641262477647,61.4127,167.16,167.06,3.0]
[1641262477946,61.4127,167.16,167.05,6.37881805]
[1641262478347,27.66479,167.06,167.05,3.37881805]
[1641262478546,33.89479,167.06,166.99,65.732]
[1641262478747,33.89479,167.06,166.98,8.9810401]
[1641262479044,33.89479,167.06,166.98,5.9810401]
[1641262479851,33.89479,167.06,166.97,3.38037153]
[1641262480648,6.23,167.06,166.97,9.36176938]
[1641262480855,27.66479,167.09,167.0,3.0]
[1641262481451,27.66479,167.09,166.98,3.0]
[1641262481652,27.66479,167.09,166.97,9.36176938]
[1641262481854,27.66479,167.09,166.97,5.98139785]
[1641262482451,32.28579,167.09,166.97,5.98139785]
[1641262482853,65.6619,167.08,166.97,5.98139785]
[1641262483054,65.6619,167.08,166.96,64.1727]
[1641262483453,65.6619,167.08,166.99,33.75234427]
[1641262484154,65.6619,167.08,166.97,17.2267617]
[1641262484155,65.6619,167.08,166.98,33.75234427]
[1641262484355,27.66479,167.01,166.98,33.75234427]
[1641262484555,33.65679,167.01,166.98,33.75234427]
[1641262485358,33.65679,167.01,166.93,50.55213868]
[1641262485559,3.0,167.0,166.93,50.55213868]
[1641262485760,33.65679,167.01,166.93,50.55213868]
[1641262486162,3.0,166.98,166.88,134.10213203]
[1641262486360,27.66479,166.94,166.88,50.55213868]
[1641262486560,32.33579,166.94,166.88,50.55213868]
[1641262486760,4.671,166.94,166.88,50.55213868]
[1641262487160,4.671,166.94,166.88,53.55213868]
[1641262487361,64.9522,167.0,166.86,3.0]
[1641262487561,64.9522,167.0,166.88,5.98479861]
[1641262487763,64.9522,167.0,166.9,3.0]
[1641262488065,64.9522,167.0,166.88,5.98479861]
[1641262488264,64.9522,167.0,166.88,8.98479861]
[1641262488465,64.9522,167.0,166.9,27.66479]
[1641262488966,64.9522,167.0,166.88,5.98479861]
[1641262489177,70.7172,167.0,166.9,12.68325138]
[1641262489368,12.68325138,166.98,166.9,12.68325138]
[1641262489968,12.68325138,166.96,166.89,12.68325138]
[1641262490168,17.42925138,166.96,166.89,12.68325138]
[1641262490374,45.09404138,166.96,166.89,12.68325138]
[1641262491070,12.68325138,166.94,166.86,12.68325138]
[1641262491873,12.68325138,166.94,166.87,3.0]
[1641262492473,12.68325138,166.94,166.91,27.66479]
[1641262493175,12.68325138,166.95,166.91,27.66479]
[1641262493574,12.68325138,166.95,166.87,12.68325138]
[1641262494273,12.68325138,166.95,166.88,3.0]
[1641262494473,12.68325138,166.96,166.94,27.66479]
[1641262495675,12.68325138,166.96,166.89,64.3863]
[1641262495875,18.03925138,166.99,166.91,12.68325138]
[1641262496083,12.68325138,166.99,166.91,12.68325138]
[1641262496676,12.68325138,166.98,166.9,12.68325138]
[1641262497478,12.68325138,166.97,166.89,12.68325138]
[1641262498177,12.68325138,166.98,166.9,12.68325138]
[1641262500380,12.68325138,166.98,166.92,5.98336624]
[1641262500578,12.68325138,166.98,166.96,27.66479]
[1641262500878,12.68325138,166.98,166.96,33.07479]
[1641262501076,3.1720422,166.99,166.96,33.07479]
[1641262501276,78.21692868,167.07,166.96,33.07479]
[1641262501277,3.17116606,167.01,166.96,33.07479]
[1641262501477,6.606e-05,167.01,166.96,36.07479]
[1641262501679,6.606e-05,167.01,166.96,33.07479]
[1641262502077,12.68195754,167.07,167.0,12.68325138]
[1641262502478,12.68195754,167.07,167.0,17.09825138]
[1641262503178,12.68195754,167.07,167.0,4.415]
[1641262503482,12.68195754,167.07,166.99,12.68325138]
[1641262504483,12.68195754,167.03,166.95,12.68325138]
[1641262504684,12.68195754,167.03,166.97,27.66479]
[1641262504881,12.68195754,167.03,166.97,34.14279]
[1641262505381,27.66479,167.06,166.97,34.14279]
[1641262505382,27.66479,167.06,166.99,12.68325138]
[1641262505880,12.68195754,167.07,166.99,12.68325138]
[1641262506683,40.34674754,167.07,166.99,12.68325138]
[1641262507181,40.34674754,167.07,166.98,18.5325434]
[1641262507482,15.68195754,167.06,166.98,18.5325434]
[1641262507682,12.68195754,167.06,166.98,18.5325434]
[1641262508283,12.68195754,167.06,166.98,12.68325138]
[1641262508483,12.68195754,167.05,166.97,40.34804138]
[1641262509083,12.68195754,167.03,166.97,27.66479]
[1641262509685,12.68195754,167.03,166.97,36.64636674]
[1641262509985,5.754e-05,167.03,166.98,3.0]
[1641262510185,33.81227494,167.06,167.01,3.0]
[1641262510384,33.81312896,167.08,167.0,8.98032473]
[1641262510884,33.81312896,167.08,167.06,27.66479]
[1641262511083,50.55213868,167.13,167.06,33.87079]
[1641262511483,91.53969,167.15,167.06,33.87079]
[1641262511884,63.8749,167.15,167.06,33.87079]
[1641262512486,27.66479,167.18,167.06,33.87079]
[1641262512683,27.66479,167.18,167.1,27.66479]
[1641262512886,27.66479,167.18,167.1,33.85679]
[1641262513283,102.68190497,167.22,167.1,33.85679]
[1641262513488,102.68190497,167.22,167.1,39.83354044]
[1641262514087,14.39031497,167.22,167.1,39.83354044]
[1641262514286,50.55213868,167.24,167.1,39.83354044]
[1641262514489,62.8888,167.28,167.1,42.83354044]
[1641262514887,93.55359,167.28,167.1,12.16875044]
[1641262515088,90.55359,167.28,167.1,12.16875044]
[1641262515290,14.38203359,167.27,167.14,5.97532192]
[1641262515487,14.38203359,167.27,167.16,3.0]
[1641262515689,14.38203359,167.27,167.17,3.0]
[1641262515986,14.38203359,167.27,167.16,3.0]
[1641262516187,14.38203359,167.27,167.15,3.0]
[1641262516389,50.55213868,167.3,167.19,5.97353723]
[1641262516588,27.66479,167.31,167.19,11.37353723]
[1641262516788,27.66479,167.31,167.21,27.66479]
[1641262516989,3.0,167.29,167.18,27.66479]
[1641262517189,33.64100467,167.31,167.13,5.97567899]
[1641262517390,3.0,167.25,167.13,5.97567899]
[1641262517589,3.0,167.24,167.13,5.97567899]
[1641262517790,3.0,167.23,167.13,5.97567899]
[1641262518090,3.0,167.25,167.12,50.55213868]
[1641262518289,3.0,167.23,167.12,50.55213868]
[1641262518492,3.0,167.22,167.12,50.55213868]
[1641262518790,4.22402329,167.17,167.16,4.22402329]
[1641262519391,7.22402329,167.17,167.09,5.97710768]
[1641262519592,7.22402329,167.17,167.08,27.66479]
[1641262519796,3.0,167.17,167.06,33.64314834]
[1641262520396,3.0,167.15,167.06,27.66479]
[1641262520596,10.2440401,167.17,167.04,11.30131836]
[1641262520796,27.66479,167.09,167.04,11.30131836]
[1641262521096,27.66479,167.09,167.01,11.30131836]
[1641262522096,20.90345753,167.09,167.0,11.30131836]
[1641262523698,23.90345753,167.09,166.99,27.66479]
[1641262523898,29.20345753,167.09,166.99,27.66479]
[1641262524098,26.20345753,167.09,166.99,27.66479]
[1641262524299,26.20345753,167.09,167.0,5.98032473]
[1641262524497,26.20345753,167.09,167.0,10.43332473]
[1641262524898,20.90345753,167.09,167.0,10.43332473]
[1641262525299,20.90345753,167.09,167.0,21.73464309]
[1641262528099,27.66479,167.12,167.0,21.73464309]
[1641262528699,27.66479,167.12,167.0,10.43332473]
[1641262528899,27.66479,167.12,167.02,27.66479]
[1641262530903,27.66479,167.12,167.05,27.66479]
[1641262531103,27.66479,167.12,167.02,27.66479]
[1641262532509,3.0,167.1,167.02,27.66479]
[1641262532707,3.0,167.11,167.02,27.66479]
[1641262533106,27.66479,167.12,167.02,27.66479]
[1641262533306,30.66479,167.12,167.02,27.66479]
[1641262533506,3.0,167.11,167.02,27.66479]
[1641262533709,3.0,167.1,167.02,27.66479]
[1641262534106,6.14,167.11,167.02,27.66479]
[1641262534308,9.14,167.11,167.02,27.66479]
[1641262534909,6.14,167.11,167.02,27.66479]
[1641262535309,27.66479,167.12,167.02,27.66479]
[1641262536011,27.66479,167.12,167.02,33.64457832]
[1641262536413,27.66479,167.12,167.02,27.66479]
[1641262537314,27.66479,167.12,167.0,27.66479]
[1641262537715,9.94020745,167.11,167.0,27.66479]
[1641262538516,43.61113235,167.11,167.0,27.66479]
[1641262539215,9.94020745,167.11,167.0,27.66479]
[1641262540015,43.61113235,167.11,167.0,27.66479]
[1641262541116,15.67962051,167.08,167.0,12.67962051]
[1641262542317,12.67962051,167.05,166.97,12.67962051]
[1641262542919,40.34441051,167.05,166.97,40.34441051]
[1641262543118,27.66479,167.05,166.98,12.67962051]
[1641262544020,15.35135726,167.04,166.96,21.20093016]
[1641262544819,2.67173675,167.04,166.98,12.67962051]
[1641262547121,12.67962051,167.07,167.0,27.66479]
[1641262547320,12.67962051,167.07,167.0,33.98579]
[1641262547520,12.67962051,167.07,167.01,1.55541965]
[1641262549323,12.67962051,167.06,167.01,1.55541965]
[1641262552030,12.67962051,167.07,166.99,12.67962051]
[1641262552429,2.67173675,167.08,166.97,18.91504016]
[1641262553132,2.67173675,167.08,166.99,27.66479]
[1641262554130,2.67173675,167.08,167.0,1.55541965]
[1641262554831,2.67173675,167.08,166.98,1.55541965]
[1641262555033,2.67173675,167.08,166.99,27.66479]
[1641262555634,2.67173675,167.08,167.0,1.55541965]
[1641262559234,12.67962051,167.06,166.98,41.89983016]
[1641262560436,12.67962051,167.07,166.99,1.55541965]
[1641262560936,12.67962051,167.06,166.99,1.55541965]
[1641262567142,12.67962051,167.05,166.99,1.55541965]
[1641262567843,12.67962051,167.06,166.99,1.55541965]
[1641262569943,12.67962051,167.07,166.99,14.23504016]
[1641262570142,12.67962051,167.07,166.99,21.20089909]
[1641262570546,2.67173675,167.08,166.99,21.20089909]
[1641262570746,2.67173675,167.08,167.0,12.67962051]
[1641262571849,2.67173675,167.08,167.02,12.67962051]
[1641262572046,2.67173675,167.08,167.02,17.86862051]
[1641262572749,18.35135726,167.08,167.03,1.55541965]
[1641262573046,15.35135726,167.08,167.03,1.55541965]
[1641262573447,27.66479,167.06,167.03,1.55541965]
[1641262574349,2.67173675,167.05,167.03,1.55541965]
[1641262574950,2.67173675,167.05,167.02,5.189]
[1641262575151,2.67173675,167.05,166.98,12.67962051]
[1641262575752,2.67173675,167.05,166.98,14.23504306]
[1641262576656,15.35135726,167.05,166.98,1.55542255]
[1641262576853,15.35135726,167.05,166.97,12.67962051]
[1641262577052,3.0,167.04,166.96,6.96585893]
[1641262577254,3.0,167.02,166.96,6.96585893]
[1641262577452,8.838,167.02,166.96,6.96585893]
[1641262577652,27.66479,167.01,166.96,6.96585893]
[1641262577952,3.0,167.03,166.96,6.96585893]
[1641262578158,12.67962051,167.01,166.93,12.68420537]
[1641262579655,40.34441051,167.01,166.93,12.68420537]
[1641262579855,4.22809326,166.96,166.92,6.96585893]
[1641262580657,4.22809326,166.96,166.91,33.64833525]
[1641262580857,4.22809326,166.95,166.91,33.64833525]
[1641262581056,4.22809326,166.95,166.9,3.38244676]
[1641262581456,4.22809326,166.95,166.9,10.00721841]
[1641262582358,4.22809326,166.94,166.9,3.38244676]
[1641262582558,4.22809326,166.94,166.89,6.62477165]
[1641262583462,10.29049724,166.99,166.89,6.62477165]
[1641262583664,10.29049724,166.99,166.91,27.66479]
[1641262584061,65.2337,167.0,166.91,27.66479]
[1641262584265,4.22857835,166.97,166.92,6.62477165]
[1641262584463,10.20957835,166.97,166.92,6.62477165]
[1641262585067,5.981,166.97,166.89,6.62477165]
[1641262585669,27.66479,166.95,166.89,6.62477165]
[1641262586169,27.66479,166.95,166.87,6.62477165]